[Event "Titled Tuesday Blitz June 28 Early 2022"]
[White "Sargsyan, Anna M."]
[Black "Nilsson, Joakim"]
[WhiteFideId "13308130"]
[BlackFideId "1723383"]
[WhiteElo "2271"]
[BlackElo "2210"]
[Result "0-1"]
[Round "06"]
[TimeControl "180+1"]
[Date "2022.06.28"]
[WhiteClock "0:00:01"]
[BlackClock "0:00:11"]

1. d4 {[%clk 0:02:48]}  Nf6 {[%clk 0:02:58]} 2. c4 {[%clk 0:02:48]}  e6 {[%clk 0:02:59]} 3. Nf3 {[%clk 0:02:47]}  Bb4+ {[%clk 0:02:59]} 4. Bd2 {[%clk 0:02:47]}  c5 {[%clk 0:02:59]} 5. g3 {[%clk 0:02:47]}  O-O {[%clk 0:02:57]} 6. Bg2 {[%clk 0:02:48]}  Nc6 {[%clk 0:02:54]} 7. O-O {[%clk 0:02:47]}  Bxd2 {[%clk 0:02:50]} 8. Qxd2 {[%clk 0:02:47]}  cxd4 {[%clk 0:02:47]} 9. Nxd4 {[%clk 0:02:47]}  d5 {[%clk 0:02:43]} 10. Nxc6 {[%clk 0:02:44]}  bxc6 {[%clk 0:02:43]} 11. Nc3 {[%clk 0:02:45]}  Rb8 {[%clk 0:02:43]} 12. Rfd1 {[%clk 0:02:39]}  Ba6 {[%clk 0:02:42]} 13. cxd5 {[%clk 0:02:37]}  cxd5 {[%clk 0:02:42]} 14. e3 {[%clk 0:02:38]}  Qe7 {[%clk 0:02:39]} 15. Rac1 {[%clk 0:02:38]}  Rfc8 {[%clk 0:02:38]} 16. Na4 {[%clk 0:02:35]}  Bb5 {[%clk 0:02:25]} 17. Qa5 {[%clk 0:02:26]}  Bxa4 {[%clk 0:02:22]} 18. Qxa4 {[%clk 0:02:27]}  h5 {[%clk 0:02:13]} 19. b3 {[%clk 0:02:21]}  Qb7 {[%clk 0:02:09]} 20. Bf1 {[%clk 0:02:15]}  Ne4 {[%clk 0:02:08]} 21. Ba6 {[%clk 0:02:10]}  Rxc1 {[%clk 0:02:05]} 22. Rxc1 {[%clk 0:02:10]}  Qe7 {[%clk 0:01:56]} 23. Bd3 {[%clk 0:02:08]}  Nd6 {[%clk 0:01:43]} 24. Qa6 {[%clk 0:01:47]}  g6 {[%clk 0:01:41]} 25. Rc6 {[%clk 0:01:47]}  Ne4 {[%clk 0:01:20]} 26. Bxe4 {[%clk 0:01:43]}  dxe4 {[%clk 0:01:21]} 27. Qc4 {[%clk 0:01:43]}  Qa3 {[%clk 0:01:16]} 28. Qc2 {[%clk 0:01:31]}  Rd8 {[%clk 0:01:10]} 29. Rc7 {[%clk 0:01:25]}  a5 {[%clk 0:01:06]} 30. Ra7 {[%clk 0:01:21]}  Qb4 {[%clk 0:00:28]} 31. Kg2 {[%clk 0:01:15]}  Rd2 {[%clk 0:00:23]} 32. Qc8+ {[%clk 0:00:21]}  Kg7 {[%clk 0:00:23]} 33. Ra8 {[%clk 0:00:12]}  Rxf2+ {[%clk 0:00:22]} 34. Kh3 {[%clk 0:00:12]}  Kf6 {[%clk 0:00:13]} 35. Qh8+ {[%clk 0:00:12]}  Kf5 {[%clk 0:00:13]} 36. Ra7 {[%clk 0:00:09]}  f6 {[%clk 0:00:13]} 37. Rf7 {[%clk 0:00:08]}  Qc3 {[%clk 0:00:13]} 38. Qb8 {[%clk 0:00:02]}  Qe5 {[%clk 0:00:12]} 39. Qb7 {[%clk 0:00:02]}  h4 {[%clk 0:00:12]} 40. g4+ {[%clk 0:00:01]}  Kg5 {[%clk 0:00:11]} 0-1


[Site "https://www.chess.com"]

[Event "Titled Tuesday Blitz June 28 Early 2022"]
[White "Silva, Pedro Gil Ferreira Da"]
[Black "Pein, Jonathan"]
[WhiteFideId "1946102"]
[BlackFideId "417092"]
[WhiteElo "1863"]
[BlackElo "2140"]
[Result "0-1"]
[Round "06"]
[TimeControl "180+1"]
[Date "2022.06.28"]
[WhiteClock "0:00:02"]
[BlackClock "0:01:02"]

1. Nf3 {[%clk 0:03:00]}  d5 {[%clk 0:02:41]} 2. c4 {[%clk 0:02:59]}  d4 {[%clk 0:02:35]} 3. g3 {[%clk 0:02:57]}  g6 {[%clk 0:02:23]} 4. Bg2 {[%clk 0:02:57]}  Bg7 {[%clk 0:02:24]} 5. O-O {[%clk 0:02:56]}  e5 {[%clk 0:02:25]} 6. d3 {[%clk 0:02:56]}  Nc6 {[%clk 0:02:23]} 7. a3 {[%clk 0:02:56]}  a5 {[%clk 0:02:23]} 8. Nbd2 {[%clk 0:02:45]}  f5 {[%clk 0:02:21]} 9. c5 {[%clk 0:02:34]}  Nge7 {[%clk 0:02:10]} 10. Nc4 {[%clk 0:02:33]}  O-O {[%clk 0:02:10]} 11. Bd2 {[%clk 0:02:23]}  a4 {[%clk 0:02:06]} 12. Qc2 {[%clk 0:02:23]}  h6 {[%clk 0:02:02]} 13. b4 {[%clk 0:02:06]}  axb3 {[%clk 0:02:00]} 14. Qxb3 {[%clk 0:02:06]}  Be6 {[%clk 0:01:57]} 15. Rfc1 {[%clk 0:01:51]}  Qd7 {[%clk 0:01:53]} 16. Rab1 {[%clk 0:01:45]}  Kh7 {[%clk 0:01:52]} 17. Qc2 {[%clk 0:01:21]}  Ra7 {[%clk 0:01:42]} 18. Rb2 {[%clk 0:01:11]}  Nd5 {[%clk 0:01:41]} 19. Rcb1 {[%clk 0:01:10]}  Nc3 {[%clk 0:01:41]} 20. Re1 {[%clk 0:00:59]}  e4 {[%clk 0:01:38]} 21. Nh4 {[%clk 0:00:38]}  g5 {[%clk 0:01:38]} 22. dxe4 {[%clk 0:00:21]}  gxh4 {[%clk 0:01:31]} 23. exf5 {[%clk 0:00:11]}  Bxc4 {[%clk 0:01:30]} 24. f6+ {[%clk 0:00:11]}  d3 {[%clk 0:01:24]} 25. exd3 {[%clk 0:00:10]}  Bxd3 {[%clk 0:01:15]} 26. Qxc3 {[%clk 0:00:09]}  Bxf6 {[%clk 0:01:15]} 27. Qc1 {[%clk 0:00:03]}  hxg3 {[%clk 0:01:10]} 28. hxg3 {[%clk 0:00:01]}  Bxb2 {[%clk 0:01:06]} 29. Qxb2 {[%clk 0:00:02]}  Qd4 {[%clk 0:01:07]} 30. Bc3 {[%clk 0:00:02]}  Qxc5 {[%clk 0:01:03]} 31. Bxc6 {[%clk 0:00:02]}  bxc6 {[%clk 0:01:02]} 32. Re7+ {[%clk 0:00:02]}  Qxe7 {[%clk 0:01:02]} 0-1


[Site "https://www.chess.com"]

[Event "Titled Tuesday Blitz June 28 Early 2022"]
[White "Sirosh, Ilja"]
[Black "Garcia Cuenca, Victor"]
[WhiteFideId "4500458"]
[BlackFideId "2250829"]
[WhiteElo "2241"]
[BlackElo "2317"]
[Result "1-0"]
[Round "06"]
[TimeControl "180+1"]
[Date "2022.06.28"]
[WhiteClock "0:01:00"]
[BlackClock "0:00:15"]

1. e4 {[%clk 0:03:00]}  c6 {[%clk 0:02:58]} 2. d4 {[%clk 0:02:58]}  d5 {[%clk 0:02:58]} 3. exd5 {[%clk 0:02:52]}  cxd5 {[%clk 0:02:57]} 4. Bd3 {[%clk 0:02:52]}  Nc6 {[%clk 0:02:57]} 5. c3 {[%clk 0:02:51]}  Nf6 {[%clk 0:02:58]} 6. Bf4 {[%clk 0:02:48]}  e6 {[%clk 0:02:52]} 7. Nf3 {[%clk 0:02:48]}  Bd6 {[%clk 0:02:53]} 8. Bxd6 {[%clk 0:02:47]}  Qxd6 {[%clk 0:02:52]} 9. O-O {[%clk 0:02:48]}  O-O {[%clk 0:02:51]} 10. Re1 {[%clk 0:02:48]}  b6 {[%clk 0:02:48]} 11. Nbd2 {[%clk 0:02:43]}  Bb7 {[%clk 0:02:48]} 12. Ne5 {[%clk 0:02:42]}  Nd7 {[%clk 0:02:38]} 13. f4 {[%clk 0:02:26]}  g6 {[%clk 0:02:27]} 14. Re3 {[%clk 0:02:22]}  f6 {[%clk 0:02:16]} 15. Nxd7 {[%clk 0:02:20]}  Qxd7 {[%clk 0:02:15]} 16. Qg4 {[%clk 0:02:20]}  Rae8 {[%clk 0:01:52]} 17. Rae1 {[%clk 0:02:20]}  Bc8 {[%clk 0:01:50]} 18. Qh4 {[%clk 0:02:14]}  Ne7 {[%clk 0:01:40]} 19. Nf3 {[%clk 0:02:12]}  Nf5 {[%clk 0:01:39]} 20. Bxf5 {[%clk 0:02:12]}  exf5 {[%clk 0:01:39]} 21. Qf2 {[%clk 0:02:08]}  Re4 {[%clk 0:01:31]} 22. Nd2 {[%clk 0:02:09]}  Ba6 {[%clk 0:01:27]} 23. Nxe4 {[%clk 0:02:07]}  fxe4 {[%clk 0:01:28]} 24. f5 {[%clk 0:02:06]}  Qxf5 {[%clk 0:01:21]} 25. Qxf5 {[%clk 0:02:05]}  gxf5 {[%clk 0:01:22]} 26. Rh3 {[%clk 0:01:55]}  Kg7 {[%clk 0:01:11]} 27. Kf2 {[%clk 0:01:54]}  f4 {[%clk 0:00:34]} 28. Rh4 {[%clk 0:01:52]}  Kg6 {[%clk 0:00:32]} 29. Rxf4 {[%clk 0:01:51]}  Kg5 {[%clk 0:00:31]} 30. g3 {[%clk 0:01:51]}  f5 {[%clk 0:00:30]} 31. Ke3 {[%clk 0:01:49]}  h5 {[%clk 0:00:28]} 32. a4 {[%clk 0:01:44]}  Bd3 {[%clk 0:00:27]} 33. a5 {[%clk 0:01:43]}  bxa5 {[%clk 0:00:26]} 34. Ra1 {[%clk 0:01:42]}  Rb8 {[%clk 0:00:26]} 35. Rxa5 {[%clk 0:01:24]}  Rxb2 {[%clk 0:00:25]} 36. Rf2 {[%clk 0:01:24]}  Rb3 {[%clk 0:00:20]} 37. Rxd5 {[%clk 0:01:23]}  Rxc3 {[%clk 0:00:20]} 38. Rfxf5+ {[%clk 0:01:19]}  Kg4 {[%clk 0:00:20]} 39. Rg5+ {[%clk 0:01:19]}  Kh3 {[%clk 0:00:20]} 40. Rxh5+ {[%clk 0:01:19]}  Kg2 {[%clk 0:00:21]} 41. Rdf5 {[%clk 0:01:15]}  Bb1+ {[%clk 0:00:18]} 42. Kd2 {[%clk 0:01:10]}  Rd3+ {[%clk 0:00:19]} 43. Ke2 {[%clk 0:01:08]}  Rxd4 {[%clk 0:00:18]} 44. Rf2+ {[%clk 0:01:06]}  Kg1 {[%clk 0:00:18]} 45. Rc5 {[%clk 0:01:04]}  Bd3+ {[%clk 0:00:14]} 46. Ke3 {[%clk 0:01:04]}  Rc4 {[%clk 0:00:15]} 47. Rxc4 {[%clk 0:01:00]}  Bxc4 {[%clk 0:00:15]} 48. Rb2 {[%clk 0:01:00]} 1-0


[Site "https://www.chess.com"]

[Event "Titled Tuesday Blitz June 28 Early 2022"]
[White "Snehal, Bhosale"]
[Black "Jia, Haoxiang"]
[WhiteFideId "5021995"]
[BlackFideId "8602999"]
[WhiteElo "2103"]
[BlackElo "2610"]
[Result "0-1"]
[Round "06"]
[TimeControl "180+1"]
[Date "2022.06.28"]
[WhiteClock "0:01:03"]
[BlackClock "0:01:34"]

1. d4 {[%clk 0:02:55]}  d5 {[%clk 0:02:57]} 2. c4 {[%clk 0:02:55]}  c6 {[%clk 0:02:54]} 3. Nc3 {[%clk 0:02:55]}  Nf6 {[%clk 0:02:50]} 4. e3 {[%clk 0:02:55]}  g6 {[%clk 0:02:49]} 5. Nf3 {[%clk 0:02:55]}  Bg7 {[%clk 0:02:49]} 6. Bd3 {[%clk 0:02:52]}  O-O {[%clk 0:02:48]} 7. O-O {[%clk 0:02:52]}  dxc4 {[%clk 0:02:48]} 8. Bxc4 {[%clk 0:02:51]}  Bg4 {[%clk 0:02:49]} 9. b3 {[%clk 0:02:43]}  Nbd7 {[%clk 0:02:47]} 10. Bb2 {[%clk 0:02:42]}  e5 {[%clk 0:02:46]} 11. Be2 {[%clk 0:02:39]}  Bxf3 {[%clk 0:02:42]} 12. Bxf3 {[%clk 0:02:40]}  exd4 {[%clk 0:02:43]} 13. Qxd4 {[%clk 0:02:29]}  Nd5 {[%clk 0:02:40]} 14. Qd2 {[%clk 0:02:25]}  Nxc3 {[%clk 0:02:34]} 15. Bxc3 {[%clk 0:02:26]}  Ne5 {[%clk 0:02:34]} 16. Qxd8 {[%clk 0:02:20]}  Nxf3+ {[%clk 0:02:28]} 17. gxf3 {[%clk 0:02:19]}  Rfxd8 {[%clk 0:02:28]} 18. Bxg7 {[%clk 0:02:18]}  Kxg7 {[%clk 0:02:29]} 19. Rfd1 {[%clk 0:02:17]}  Kf6 {[%clk 0:02:30]} 20. Kf1 {[%clk 0:02:16]}  Ke5 {[%clk 0:02:30]} 21. Ke2 {[%clk 0:02:16]}  f5 {[%clk 0:02:30]} 22. Rac1 {[%clk 0:02:13]}  Rac8 {[%clk 0:02:21]} 23. Rc5+ {[%clk 0:02:10]}  Ke6 {[%clk 0:02:21]} 24. Rd3 {[%clk 0:02:05]}  Rxd3 {[%clk 0:02:20]} 25. Kxd3 {[%clk 0:02:06]}  Rd8+ {[%clk 0:02:21]} 26. Ke2 {[%clk 0:02:06]}  Rd5 {[%clk 0:02:08]} 27. Rc4 {[%clk 0:02:05]}  a5 {[%clk 0:02:04]} 28. h4 {[%clk 0:01:54]}  Kd6 {[%clk 0:02:00]} 29. h5 {[%clk 0:01:52]}  b5 {[%clk 0:01:49]} 30. hxg6 {[%clk 0:01:51]}  hxg6 {[%clk 0:01:48]} 31. Rh4 {[%clk 0:01:50]}  Kc5 {[%clk 0:01:48]} 32. Rh6 {[%clk 0:01:37]}  Rd6 {[%clk 0:01:48]} 33. e4 {[%clk 0:01:37]}  fxe4 {[%clk 0:01:39]} 34. fxe4 {[%clk 0:01:37]}  Kd4 {[%clk 0:01:39]} 35. Kf3 {[%clk 0:01:27]}  Rf6+ {[%clk 0:01:38]} 36. Kg4 {[%clk 0:01:25]}  Kxe4 {[%clk 0:01:38]} 37. Rh2 {[%clk 0:01:13]}  c5 {[%clk 0:01:34]} 38. Kg5 {[%clk 0:01:10]}  Rc6 {[%clk 0:01:34]} 39. f4 {[%clk 0:01:09]}  c4 {[%clk 0:01:34]} 40. bxc4 {[%clk 0:01:07]}  bxc4 {[%clk 0:01:34]} 41. Rh6 {[%clk 0:01:05]}  c3 {[%clk 0:01:34]} 42. f5 {[%clk 0:01:05]}  c2 {[%clk 0:01:34]} 43. Rh1 {[%clk 0:01:03]} 0-1


[Site "https://www.chess.com"]

[Event "Titled Tuesday Blitz June 28 Early 2022"]
[White "Sukandar, Irine Kharisma"]
[Black "Aradhya, Garg"]
[WhiteFideId "7101937"]
[BlackFideId "25006746"]
[WhiteElo "2293"]
[BlackElo "2203"]
[Result "0-1"]
[Round "06"]
[TimeControl "180+1"]
[Date "2022.06.28"]
[WhiteClock "0:00:27"]
[BlackClock "0:01:24"]

1. d4 {[%clk 0:03:00]}  d5 {[%clk 0:02:59]} 2. Nc3 {[%clk 0:03:01]}  Nf6 {[%clk 0:02:59]} 3. Bf4 {[%clk 0:03:01]}  c5 {[%clk 0:02:59]} 4. e4 {[%clk 0:03:01]}  Nxe4 {[%clk 0:02:58]} 5. Nxe4 {[%clk 0:03:01]}  dxe4 {[%clk 0:02:59]} 6. dxc5 {[%clk 0:03:01]}  Qa5+ {[%clk 0:02:59]} 7. c3 {[%clk 0:02:52]}  Qxc5 {[%clk 0:02:58]} 8. Qa4+ {[%clk 0:02:52]}  Nc6 {[%clk 0:02:58]} 9. Qxe4 {[%clk 0:02:49]}  Bf5 {[%clk 0:02:57]} 10. Qa4 {[%clk 0:02:42]}  e5 {[%clk 0:02:25]} 11. Be3 {[%clk 0:02:42]}  Qa5 {[%clk 0:02:24]} 12. Qxa5 {[%clk 0:02:33]}  Nxa5 {[%clk 0:02:25]} 13. Bb5+ {[%clk 0:02:33]}  Bd7 {[%clk 0:02:23]} 14. Bxd7+ {[%clk 0:02:32]}  Kxd7 {[%clk 0:02:24]} 15. O-O-O+ {[%clk 0:02:33]}  Ke6 {[%clk 0:02:23]} 16. Kc2 {[%clk 0:02:24]}  Nc4 {[%clk 0:02:21]} 17. Bc1 {[%clk 0:02:24]}  Bc5 {[%clk 0:02:19]} 18. Nf3 {[%clk 0:02:20]}  f6 {[%clk 0:02:16]} 19. Rhf1 {[%clk 0:02:14]}  Rhd8 {[%clk 0:02:14]} 20. b3 {[%clk 0:02:06]}  Rxd1 {[%clk 0:02:12]} 21. Rxd1 {[%clk 0:02:06]}  Nd6 {[%clk 0:02:13]} 22. Be3 {[%clk 0:01:48]}  Bxe3 {[%clk 0:02:10]} 23. fxe3 {[%clk 0:01:48]}  Rc8 {[%clk 0:02:10]} 24. Nd2 {[%clk 0:01:39]}  g5 {[%clk 0:02:04]} 25. a4 {[%clk 0:01:37]}  h5 {[%clk 0:02:03]} 26. c4 {[%clk 0:01:36]}  g4 {[%clk 0:02:02]} 27. Kd3 {[%clk 0:01:31]}  h4 {[%clk 0:02:00]} 28. b4 {[%clk 0:01:31]}  b6 {[%clk 0:01:57]} 29. Ra1 {[%clk 0:01:29]}  Rd8 {[%clk 0:01:55]} 30. Kc3 {[%clk 0:01:29]}  Nf5 {[%clk 0:01:51]} 31. e4 {[%clk 0:01:23]}  Ne3 {[%clk 0:01:45]} 32. g3 {[%clk 0:01:23]}  hxg3 {[%clk 0:01:44]} 33. hxg3 {[%clk 0:01:23]}  f5 {[%clk 0:01:44]} 34. a5 {[%clk 0:01:22]}  f4 {[%clk 0:01:43]} 35. axb6 {[%clk 0:01:16]}  axb6 {[%clk 0:01:44]} 36. gxf4 {[%clk 0:01:13]}  exf4 {[%clk 0:01:43]} 37. Rf1 {[%clk 0:01:10]}  f3 {[%clk 0:01:41]} 38. Re1 {[%clk 0:01:02]}  f2 {[%clk 0:01:37]} 39. Rh1 {[%clk 0:00:48]}  g3 {[%clk 0:01:30]} 40. Nf3 {[%clk 0:00:32]}  g2 {[%clk 0:01:27]} 41. Rh6+ {[%clk 0:00:33]}  Kf7 {[%clk 0:01:25]} 42. Ng5+ {[%clk 0:00:27]}  Kg7 {[%clk 0:01:24]} 0-1


[Site "https://www.chess.com"]

[Event "Titled Tuesday Blitz June 28 Early 2022"]
[White "Torres Cueto, Jesus Marcial"]
[Black "Zhigalko, Sergei"]
[WhiteFideId "4415280"]
[BlackFideId "13502956"]
[WhiteElo "2055"]
[BlackElo "2662"]
[Result "0-1"]
[Round "06"]
[TimeControl "180+1"]
[Date "2022.06.28"]
[WhiteClock "0:00:02"]
[BlackClock "0:00:04"]

1. d4 {[%clk 0:02:56]}  Nf6 {[%clk 0:03:00]} 2. c4 {[%clk 0:02:44]}  e6 {[%clk 0:03:00]} 3. Nc3 {[%clk 0:02:43]}  Bb4 {[%clk 0:03:00]} 4. Qc2 {[%clk 0:02:38]}  O-O {[%clk 0:03:00]} 5. Nf3 {[%clk 0:02:37]}  d5 {[%clk 0:02:57]} 6. e3 {[%clk 0:02:37]}  b6 {[%clk 0:02:57]} 7. a3 {[%clk 0:02:35]}  Be7 {[%clk 0:02:53]} 8. Bd3 {[%clk 0:02:34]}  c5 {[%clk 0:02:49]} 9. O-O {[%clk 0:02:31]}  Bb7 {[%clk 0:02:49]} 10. cxd5 {[%clk 0:02:26]}  exd5 {[%clk 0:02:49]} 11. Bd2 {[%clk 0:02:23]}  Nc6 {[%clk 0:02:45]} 12. dxc5 {[%clk 0:02:12]}  bxc5 {[%clk 0:02:46]} 13. Rfd1 {[%clk 0:02:11]}  Re8 {[%clk 0:02:38]} 14. Rac1 {[%clk 0:02:01]}  g6 {[%clk 0:02:36]} 15. Qb1 {[%clk 0:01:55]}  Rc8 {[%clk 0:02:35]} 16. Ne2 {[%clk 0:01:49]}  d4 {[%clk 0:02:20]} 17. exd4 {[%clk 0:01:40]}  cxd4 {[%clk 0:02:18]} 18. b4 {[%clk 0:01:38]}  Bd6 {[%clk 0:01:59]} 19. h3 {[%clk 0:01:21]}  Ne5 {[%clk 0:01:50]} 20. Nfxd4 {[%clk 0:00:57]}  Nxd3 {[%clk 0:01:40]} 21. Qxd3 {[%clk 0:00:57]}  Rxc1 {[%clk 0:01:26]} 22. Rxc1 {[%clk 0:00:52]}  Bb8 {[%clk 0:01:26]} 23. Be3 {[%clk 0:00:43]}  Nh5 {[%clk 0:01:08]} 24. Qb5 {[%clk 0:00:29]}  Qe7 {[%clk 0:01:03]} 25. Nc6 {[%clk 0:00:22]}  Bxc6 {[%clk 0:00:39]} 26. Qxc6 {[%clk 0:00:23]}  Qe5 {[%clk 0:00:38]} 27. g3 {[%clk 0:00:19]}  Rd8 {[%clk 0:00:30]} 28. Qc5 {[%clk 0:00:16]}  Qe6 {[%clk 0:00:26]} 29. Qc3 {[%clk 0:00:11]}  Qxh3 {[%clk 0:00:21]} 30. Qc2 {[%clk 0:00:06]}  Qg4 {[%clk 0:00:10]} 31. Rd1 {[%clk 0:00:06]}  Rc8 {[%clk 0:00:10]} 32. Qd3 {[%clk 0:00:04]}  Nf6 {[%clk 0:00:06]} 33. Qd4 {[%clk 0:00:04]}  Qxe2 {[%clk 0:00:05]} 34. Rd2 {[%clk 0:00:02]}  Qe1+ {[%clk 0:00:04]} 35. Kg2 {[%clk 0:00:02]}  Ne8 {[%clk 0:00:04]} 0-1


[Site "https://www.chess.com"]

[Event "Titled Tuesday Blitz June 28 Early 2022"]
[White "Vachier-Lagrave, Maxime"]
[Black "Lashkin, Jegor"]
[WhiteFideId "623539"]
[BlackFideId "13907808"]
[WhiteElo "3011"]
[BlackElo "2905"]
[Result "1-0"]
[Round "06"]
[TimeControl "180+1"]
[Date "2022.06.28"]
[WhiteClock "0:00:44"]
[BlackClock "0:00:03"]

1. e4 {[%clk 0:03:00]}  c5 {[%clk 0:02:59]} 2. Nf3 {[%clk 0:02:58]}  d6 {[%clk 0:03:00]} 3. d4 {[%clk 0:02:53]}  cxd4 {[%clk 0:03:01]} 4. Nxd4 {[%clk 0:02:54]}  Nf6 {[%clk 0:03:01]} 5. Nc3 {[%clk 0:02:54]}  a6 {[%clk 0:03:01]} 6. h4 {[%clk 0:02:45]}  e5 {[%clk 0:03:01]} 7. Nb3 {[%clk 0:02:43]}  Be7 {[%clk 0:02:58]} 8. Bg5 {[%clk 0:02:38]}  Be6 {[%clk 0:02:56]} 9. Qd2 {[%clk 0:02:33]}  Nbd7 {[%clk 0:02:52]} 10. g3 {[%clk 0:02:31]}  O-O {[%clk 0:02:42]} 11. Be2 {[%clk 0:02:27]}  b5 {[%clk 0:02:41]} 12. a3 {[%clk 0:02:26]}  Nb6 {[%clk 0:02:40]} 13. Na5 {[%clk 0:02:22]}  Qc7 {[%clk 0:02:38]} 14. O-O {[%clk 0:02:19]}  Rfd8 {[%clk 0:02:27]} 15. Bf3 {[%clk 0:02:05]}  Rac8 {[%clk 0:02:02]} 16. Rfd1 {[%clk 0:01:55]}  h6 {[%clk 0:01:52]} 17. Bxf6 {[%clk 0:01:55]}  Bxf6 {[%clk 0:01:52]} 18. Rac1 {[%clk 0:01:56]}  Na4 {[%clk 0:01:40]} 19. Nxa4 {[%clk 0:01:51]}  bxa4 {[%clk 0:01:41]} 20. b4 {[%clk 0:01:46]}  Qc3 {[%clk 0:01:32]} 21. Qd3 {[%clk 0:01:39]}  Rc7 {[%clk 0:01:15]} 22. Be2 {[%clk 0:01:38]}  Qb2 {[%clk 0:00:55]} 23. c4 {[%clk 0:01:35]}  Rdc8 {[%clk 0:00:51]} 24. Qe3 {[%clk 0:01:25]}  Be7 {[%clk 0:00:36]} 25. Rc3 {[%clk 0:01:17]}  Rd7 {[%clk 0:00:28]} 26. Rdc1 {[%clk 0:01:14]}  Bd8 {[%clk 0:00:27]} 27. R3c2 {[%clk 0:00:58]}  Qd4 {[%clk 0:00:27]} 28. Qxd4 {[%clk 0:00:58]}  exd4 {[%clk 0:00:27]} 29. Rd1 {[%clk 0:00:57]}  Bxa5 {[%clk 0:00:26]} 30. bxa5 {[%clk 0:00:58]}  Rc5 {[%clk 0:00:27]} 31. Rxd4 {[%clk 0:00:58]}  Rxa5 {[%clk 0:00:27]} 32. Rb2 {[%clk 0:00:58]}  Kf8 {[%clk 0:00:26]} 33. Rb4 {[%clk 0:00:57]}  Ke7 {[%clk 0:00:20]} 34. f4 {[%clk 0:00:57]}  Rc7 {[%clk 0:00:17]} 35. Kf2 {[%clk 0:00:54]}  g5 {[%clk 0:00:13]} 36. Ke3 {[%clk 0:00:52]}  gxh4 {[%clk 0:00:13]} 37. gxh4 {[%clk 0:00:52]}  Bd7 {[%clk 0:00:13]} 38. Rb6 {[%clk 0:00:51]}  Rc6 {[%clk 0:00:11]} 39. Rb7 {[%clk 0:00:51]}  Kd8 {[%clk 0:00:10]} 40. e5 {[%clk 0:00:49]}  Ke7 {[%clk 0:00:04]} 41. Bg4 {[%clk 0:00:44]}  dxe5 {[%clk 0:00:03]} 42. Rdxd7+ {[%clk 0:00:44]} 1-0


[Site "https://www.chess.com"]

[Event "Titled Tuesday Blitz June 28 Early 2022"]
[White "Vianello, Enrico"]
[Black "Prieto Aranguren, Alain"]
[WhiteFideId "810738"]
[BlackFideId "2268906"]
[WhiteElo "2240"]
[BlackElo "2224"]
[Result "0-1"]
[Round "06"]
[TimeControl "180+1"]
[Date "2022.06.28"]
[WhiteClock "0:00:57"]
[BlackClock "0:01:33"]

1. Nf3 {[%clk 0:03:00]}  h5 {[%clk 0:02:59]} 2. d4 {[%clk 0:02:59]}  h4 {[%clk 0:02:58]} 3. h3 {[%clk 0:02:59]}  c5 {[%clk 0:02:58]} 4. d5 {[%clk 0:02:59]}  e6 {[%clk 0:02:57]} 5. c4 {[%clk 0:02:58]}  exd5 {[%clk 0:02:57]} 6. cxd5 {[%clk 0:02:59]}  Nf6 {[%clk 0:02:57]} 7. Nc3 {[%clk 0:02:59]}  d6 {[%clk 0:02:57]} 8. Bg5 {[%clk 0:02:59]}  Qb6 {[%clk 0:02:57]} 9. Qb3 {[%clk 0:02:56]}  Qb4 {[%clk 0:02:53]} 10. Qxb4 {[%clk 0:02:53]}  cxb4 {[%clk 0:02:53]} 11. Bxf6 {[%clk 0:02:53]}  gxf6 {[%clk 0:02:52]} 12. Ne4 {[%clk 0:02:53]}  Be7 {[%clk 0:02:47]} 13. e3 {[%clk 0:02:49]}  Na6 {[%clk 0:02:46]} 14. Rc1 {[%clk 0:02:40]}  Bd7 {[%clk 0:02:45]} 15. Be2 {[%clk 0:02:30]}  Rh5 {[%clk 0:02:37]} 16. O-O {[%clk 0:02:26]}  Rxd5 {[%clk 0:02:36]} 17. Rfd1 {[%clk 0:02:25]}  Ra5 {[%clk 0:02:29]} 18. Bc4 {[%clk 0:02:12]}  Rc8 {[%clk 0:02:21]} 19. Bb3 {[%clk 0:01:58]}  Nc5 {[%clk 0:02:15]} 20. Nxd6+ {[%clk 0:01:56]}  Bxd6 {[%clk 0:02:15]} 21. Rxd6 {[%clk 0:01:56]}  Nxb3 {[%clk 0:02:03]} 22. Rxc8+ {[%clk 0:01:57]}  Bxc8 {[%clk 0:02:03]} 23. axb3 {[%clk 0:01:57]}  Be6 {[%clk 0:01:57]} 24. Nd4 {[%clk 0:01:53]}  Ke7 {[%clk 0:01:55]} 25. Nxe6 {[%clk 0:01:17]}  Kxd6 {[%clk 0:01:50]} 26. Nd4 {[%clk 0:01:15]}  Ra2 {[%clk 0:01:49]} 27. Kh2 {[%clk 0:01:05]}  Rxb2 {[%clk 0:01:49]} 28. g3 {[%clk 0:01:06]}  hxg3+ {[%clk 0:01:42]} 29. Kxg3 {[%clk 0:01:07]}  a5 {[%clk 0:01:41]} 30. h4 {[%clk 0:01:06]}  Ke7 {[%clk 0:01:38]} 31. h5 {[%clk 0:01:06]}  Kf8 {[%clk 0:01:38]} 32. f4 {[%clk 0:01:04]}  a4 {[%clk 0:01:34]} 33. bxa4 {[%clk 0:01:03]}  b3 {[%clk 0:01:34]} 34. Kf3 {[%clk 0:00:57]}  Rb1 {[%clk 0:01:33]} 0-1


[Site "https://www.chess.com"]

[Event "Titled Tuesday Blitz June 28 Early 2022"]
[White "Vidruska, Renate"]
[Black "Sadubayev, Airat"]
[WhiteFideId "11601841"]
[BlackFideId "13713264"]
[WhiteElo "1873"]
[BlackElo "2230"]
[Result "1-0"]
[Round "06"]
[TimeControl "180+1"]
[Date "2022.06.28"]
[WhiteClock "0:00:22"]
[BlackClock "0:00:02"]

1. e4 {[%clk 0:02:55]}  c6 {[%clk 0:02:58]} 2. d4 {[%clk 0:02:54]}  d5 {[%clk 0:02:56]} 3. Nd2 {[%clk 0:02:54]}  dxe4 {[%clk 0:02:55]} 4. Nxe4 {[%clk 0:02:54]}  Bf5 {[%clk 0:02:53]} 5. Ng3 {[%clk 0:02:54]}  Bg6 {[%clk 0:02:52]} 6. h4 {[%clk 0:02:54]}  h6 {[%clk 0:02:39]} 7. Nf3 {[%clk 0:02:53]}  e6 {[%clk 0:02:32]} 8. h5 {[%clk 0:02:52]}  Bh7 {[%clk 0:02:30]} 9. Bd3 {[%clk 0:02:53]}  Bxd3 {[%clk 0:02:29]} 10. Qxd3 {[%clk 0:02:54]}  Nf6 {[%clk 0:02:26]} 11. Bd2 {[%clk 0:02:53]}  Be7 {[%clk 0:02:17]} 12. O-O-O {[%clk 0:02:51]}  O-O {[%clk 0:02:08]} 13. Kb1 {[%clk 0:02:49]}  Nbd7 {[%clk 0:02:02]} 14. Ne4 {[%clk 0:02:38]}  Nxe4 {[%clk 0:01:55]} 15. Qxe4 {[%clk 0:02:39]}  Nf6 {[%clk 0:01:54]} 16. Qe2 {[%clk 0:02:39]}  Qb6 {[%clk 0:01:44]} 17. Bc1 {[%clk 0:02:09]}  c5 {[%clk 0:01:39]} 18. Ne5 {[%clk 0:01:52]}  cxd4 {[%clk 0:01:28]} 19. g4 {[%clk 0:01:52]}  Nh7 {[%clk 0:01:16]} 20. f4 {[%clk 0:01:48]}  Bf6 {[%clk 0:01:02]} 21. Nd7 {[%clk 0:01:47]}  Qc7 {[%clk 0:00:53]} 22. Nxf8 {[%clk 0:01:47]}  Rxf8 {[%clk 0:00:50]} 23. Qd3 {[%clk 0:01:44]}  a5 {[%clk 0:00:30]} 24. Rdg1 {[%clk 0:01:41]}  e5 {[%clk 0:00:21]} 25. g5 {[%clk 0:01:22]}  hxg5 {[%clk 0:00:16]} 26. fxg5 {[%clk 0:01:20]}  Be7 {[%clk 0:00:12]} 27. g6 {[%clk 0:01:18]}  Nf6 {[%clk 0:00:11]} 28. h6 {[%clk 0:01:15]}  gxh6 {[%clk 0:00:09]} 29. gxf7+ {[%clk 0:01:15]}  Kxf7 {[%clk 0:00:09]} 30. Rxh6 {[%clk 0:00:55]}  Ke8 {[%clk 0:00:05]} 31. Qb5+ {[%clk 0:00:37]}  Qc6 {[%clk 0:00:04]} 32. Qxe5 {[%clk 0:00:33]}  Kd7 {[%clk 0:00:02]} 33. Qxd4+ {[%clk 0:00:31]}  Kc7 {[%clk 0:00:02]} 34. Bf4+ {[%clk 0:00:31]}  Kc8 {[%clk 0:00:01]} 35. Qe5 {[%clk 0:00:25]}  Bc5 {[%clk 0:00:02]} 36. Rd1 {[%clk 0:00:23]}  Re8 {[%clk 0:00:02]} 37. Qb8# {[%clk 0:00:22]} 1-0


[Site "https://www.chess.com"]